fUST/lending_fUST_20250717
["ID","MTS","AMOUNT","RATE_DAILY","PERIOD"]
[372788170,1752761448030,-178.0508326,0.00021209,2]
[372788172,1752761448040,-178.0508326,0.00021209,2]
[372788174,1752761448050,-178.0508326,0.00021209,2]
[372788176,1752761448061,-178.0508326,0.00021209,2]
[372788178,1752761448072,-178.0508326,0.00021209,2]
[372788180,1752761448082,-178.0508326,0.00021209,2]
[372788182,1752761448091,-178.0508326,0.00021209,2]
[372788184,1752761448101,-178.0508326,0.00021209,2]
[372788186,1752761448111,-356.0724517,0.00021209,2]
[372788188,1752761448120,-178.0508326,0.00021209,2]
[372788190,1752761448130,-7481.26937425,0.0002121,4]
[372788192,1752761448140,-500.0,0.00021221,2]
[372788194,1752761448150,-1000.0,0.00021221,2]
[372788196,1752761448159,-576.958633,0.00021226,2]
[372788198,1752761448168,-576.958633,0.00021226,2]
[372788200,1752761448178,-576.958633,0.00021226,2]
[372788202,1752761448187,-576.958633,0.00021226,2]
[372788204,1752761448196,-151.0,0.00021236,2]
[372788206,1752761448206,-214.040371,0.00021236,2]
[372788208,1752761448216,-214.040371,0.00021236,2]
[372788210,1752761448225,-172.959033,0.00021319,2]
[372788212,1752761448234,-172.959033,0.00021319,2]
[372788214,1752761448244,-258.424285,0.00021319,2]
[372788216,1752761448253,-258.424285,0.00021319,2]
[372788218,1752761448263,-1000.0,0.00021321,2]
[372788220,1752761448272,-938.0,0.00021353,2]
[372788222,1752761448282,-1567.182654,0.00021363,8]
[372788224,1752761448291,-276.56,0.00021364,2]
[372788226,1752761448300,-331.2,0.00021368,4]
[372788228,1752761448310,-437.649947,0.00021431,3]
[372788230,1752761448319,-152.636,0.00021435,2]
[372788232,1752761448329,-150.095,0.00021435,2]
[372788234,1752761448338,-224.39,0.00021435,2]
[372788236,1752761448348,-150.253,0.00021435,2]
[372788238,1752761448358,-150.461,0.00021435,2]
[372788240,1752761448368,-151.011,0.00021435,2]
[372788242,1752761448378,-218.115,0.00021435,2]
[372788244,1752761448388,-894.48,0.00021459,2]
[372788246,1752761448398,-1888.97,0.0002146,2]
[372788248,1752761448408,-1286.01,0.0002146,2]
[372788250,1752761448418,-1015.2,0.0002146,2]
[372788252,1752761448428,-1011.04,0.0002146,2]
[372788254,1752761448438,-486.38,0.0002146,2]
[372788256,1752761448449,-258.03102641,0.00021461,2]
[372788258,1752761448459,-1192.0,0.00021462,2]
[372788261,1752761448469,-976.0,0.00021462,2]
[372788263,1752761448479,-500.0,0.00021462,2]
[372788265,1752761448488,-1520.34,0.00021462,2]
[372788266,1752761448497,-465.74,0.00021462,2]
[372788269,1752761448507,-508.19,0.00021463,2]
[372788270,1752761448517,-223.0315306,0.00021464,2]
[372788272,1752761448526,-919.46,0.00021464,2]
[372788274,1752761448536,-957.6,0.00021464,2]
[372788277,1752761448546,-1594.11,0.00021464,2]
[372788278,1752761448556,-572.38,0.00021464,2]
[372788281,1752761448565,-991.89,0.00021464,2]
[372788283,1752761448575,-4262.81,0.00021464,2]
[372788285,1752761448584,-501.46,0.00021465,2]
[372788287,1752761448594,-383.33857086,0.00021466,2]
[372788289,1752761448603,-1000.0,0.00021466,2]
[372788290,1752761448612,-1000.0,0.00021466,2]
[372788293,1752761448622,-500.0,0.00021473,2]
[372788295,1752761448631,-500.0,0.00021473,2]
[372788296,1752761448641,-500.0,0.00021473,2]
[372788299,1752761448651,-463.34381087,0.00021473,2]
[372788301,1752761448661,-500.0,0.00021473,2]
[372788303,1752761448671,-500.0,0.00021473,2]
[372788304,1752761448680,-500.0,0.00021473,2]
[372788307,1752761448692,-500.0,0.00021473,2]
[372788309,1752761448702,-209.02065604,0.00021473,2]
[372788311,1752761448711,-500.0,0.00021473,2]
[372788312,1752761448720,-500.0,0.00021473,2]
[372788314,1752761448730,-500.0,0.00021473,2]
[372788316,1752761448740,-500.0,0.00021473,2]
[372788318,1752761448750,-7481.26937425,0.00021486,5]
[372788320,1752761448761,-955.60655029,0.00021493,2]
[372788322,1752761448771,-938.0,0.00021497,2]
[372788325,1752761448781,-938.0,0.000215,2]
[372788327,1752761448792,-206.866597,0.000215,2]
[372788329,1752761448802,-151.0,0.000215,2]
[372788331,1752761448812,-564.951053,0.000215,2]
[372788333,1752761448822,-564.951053,0.000215,2]
[372788335,1752761448832,-151.0,0.000215,2]
[372788337,1752761448844,-214.040371,0.000215,2]
[372788339,1752761448854,-214.040371,0.000215,2]
[372788341,1752761448863,-172.959033,0.000215,2]
[372788343,1752761448874,-172.959033,0.000215,2]
[372788345,1752761448884,-258.424285,0.000215,2]
[372788347,1752761448893,-258.424285,0.000215,2]
[372788349,1752761448903,-84415.02151275,0.000215,2]
[372788527,1752761450651,-159.7589236,0.00019565,2]
[372788529,1752761450660,-576.958633,0.00020387,2]
[372788531,1752761450670,-286021.64091635,0.000215,2]
[372788533,1752761450680,-151.0,0.000215,2]
[372788535,1752761450689,-266.842087,0.000215,2]
[372788537,1752761450703,-151.0,0.000215,2]
[372788539,1752761450712,-151.0,0.000215,2]
[372788541,1752761450723,-268.788372,0.000215,2]
[372788543,1752761450732,-268.788372,0.000215,2]
[372788545,1752761450742,-1281.156343,0.000215,2]
[372788547,1752761450752,-1281.156343,0.000215,2]
[372788549,1752761450761,-1281.156343,0.000215,2]
[372788551,1752761450770,-1281.156343,0.000215,2]
[372788553,1752761450780,-151.0,0.000215,2]
[372788555,1752761450789,-605.051561,0.000215,2]
[372788557,1752761450798,-605.051561,0.000215,2]
[372788559,1752761450808,-151.0,0.000215,2]
[372788561,1752761450818,-151.0,0.000215,2]
[372788563,1752761450827,-151.0,0.000215,2]
[372788565,1752761450838,-151.0,0.000215,2]
[372788567,1752761450847,-151.0,0.000215,2]
[372788569,1752761450857,-567.312125,0.000215,2]
[372788571,1752761450866,-567.312125,0.000215,2]
[372788573,1752761450876,-188.015,0.000215,2]
[372788575,1752761450885,-188.015,0.000215,2]
[372788577,1752761450894,-429.2412091,0.00021534,2]
[372788579,1752761450903,-429.2412091,0.00021534,2]
[372788581,1752761450913,-429.2412091,0.00021534,2]
[372788583,1752761450922,-429.2412091,0.00021534,2]
[372788584,1752761450932,-823.0,0.00021564,2]
[372788586,1752761450941,-151.0,0.000216,3]
[372788588,1752761450952,-938.0,0.00021602,2]
[372788590,1752761450961,-660.0,0.0002168,2]
[372788592,1752761450971,-938.0,0.00021722,2]
[372788594,1752761450981,-894.48,0.00021733,2]
[372788596,1752761450990,-1888.97,0.00021734,2]
[372788598,1752761450999,-1286.01,0.00021734,2]
[372788600,1752761451009,-1015.2,0.00021734,2]
[372788602,1752761451022,-1011.04,0.00021734,2]
[372788604,1752761451032,-486.38,0.00021734,2]
[372788606,1752761451041,-244.39770133,0.00021735,2]
[372788608,1752761451051,-1192.0,0.00021736,2]
[372788610,1752761451060,-976.0,0.00021736,2]
[372788612,1752761451069,-620.86983277,0.00021736,2]
[372788614,1752761451078,-1520.34,0.00021736,2]
[372788616,1752761451088,-465.74,0.00021736,2]
[372788618,1752761451097,-508.19,0.00021737,2]
[372788620,1752761451107,-919.46,0.00021738,2]
[372788622,1752761451117,-957.6,0.00021738,2]
[372788624,1752761451127,-1594.11,0.00021738,2]
[372788626,1752761451136,-572.38,0.00021738,2]
[372788628,1752761451146,-991.89,0.00021738,2]
[372788630,1752761451155,-4262.81,0.00021738,2]
[372788632,1752761451164,-501.46,0.00021739,2]
[372788634,1752761451175,-331.2,0.00021756,4]
[372788636,1752761451184,-7481.26937425,0.00021762,5]
[372788638,1752761451195,-1000.0,0.00021767,5]
[372788640,1752761451204,-1500.0,0.00021769,2]
[372788642,1752761451213,-1000.0,0.0002178,2]
[372788644,1752761451223,-500.0,0.000218,2]
[372788646,1752761451232,-7235.74346272,0.000218,4]
[372788648,1752761451241,-1500.0,0.000218,2]
[372788650,1752761451250,-1500.0,0.000218,2]
[372788652,1752761451260,-1500.0,0.000218,2]
[372788654,1752761451269,-1500.0,0.000218,2]
[372788655,1752761451278,-1500.0,0.000218,2]
[372788657,1752761451288,-1500.0,0.000218,2]
[372788659,1752761451297,-1500.0,0.000218,2]
[372788661,1752761451306,-1500.0,0.000218,2]
[372788663,1752761451316,-1500.0,0.000218,2]
[372788665,1752761451325,-1846.2,0.000218,2]
[372788667,1752761451334,-1500.0,0.000218,2]
[372788669,1752761451343,-500.0,0.00021851,2]
[372788671,1752761451353,-938.0,0.00021853,2]
[372788673,1752761451362,-1500.0,0.00021869,2]
[372788675,1752761451371,-938.0,0.00021871,2]
[372788677,1752761451381,-938.0,0.00021893,2]
[372788679,1752761451390,-437.649947,0.00021893,4]
[372788681,1752761451400,-1000.74567423,0.000219,5]
[372788683,1752761451409,-2966.84311176,0.000219,2]
[372788685,1752761451418,-500.0,0.00021917,2]
[372788687,1752761451427,-500.0,0.00021917,2]
[372788689,1752761451436,-153.0,0.00021918,2]
[372788691,1752761451447,-153.0,0.00021918,2]
[372788693,1752761451457,-153.0,0.00021918,2]
[372788695,1752761451465,-153.0,0.00021918,2]
[372788697,1752761451475,-153.0,0.00021918,2]
[372788698,1752761451484,-153.0,0.00021918,2]
[372788700,1752761451494,-153.0,0.00021918,2]
[372788702,1752761451503,-153.0,0.00021918,2]
[372788704,1752761451512,-153.0,0.00021918,2]
[372788706,1752761451521,-153.0,0.00021918,2]
[372788708,1752761451530,-153.0,0.00021918,2]
[372788710,1752761451540,-153.0,0.00021918,2]
[372788712,1752761451549,-153.0,0.00021918,2]
[372788714,1752761451557,-153.0,0.00021918,2]
[372788716,1752761451566,-153.0,0.00021918,2]
[372788718,1752761451576,-153.0,0.00021918,2]
[372788720,1752761451585,-153.0,0.00021918,2]
[372788722,1752761451594,-153.0,0.00021918,2]
[372788724,1752761451603,-153.0,0.00021918,2]
[372788726,1752761451612,-153.0,0.00021918,2]
[372788728,1752761451621,-153.0,0.00021918,2]
[372788730,1752761451630,-153.0,0.00021918,2]
[372788732,1752761451639,-153.0,0.00021918,2]
[372788734,1752761451648,-153.0,0.00021918,2]
[372788736,1752761451657,-153.0,0.00021918,2]
[372788737,1752761451666,-153.0,0.00021918,2]
[372788739,1752761451675,-153.0,0.00021918,2]
[372788741,1752761451684,-153.0,0.00021918,2]
[372788743,1752761451693,-153.0,0.00021918,2]
[372788745,1752761451704,-153.0,0.00021918,2]
[372788747,1752761451714,-153.0,0.00021918,2]
[372788749,1752761451723,-153.0,0.00021918,2]
[372788751,1752761451733,-153.0,0.00021918,2]
[372788753,1752761451742,-153.0,0.00021918,2]
[372788755,1752761451751,-153.0,0.00021918,2]
[372788757,1752761451760,-153.0,0.00021918,2]
[372788759,1752761451770,-153.0,0.00021918,2]
[372788761,1752761451779,-153.0,0.00021918,2]
[372788763,1752761451789,-153.0,0.00021918,2]
[372788765,1752761451799,-153.0,0.00021918,2]
[372788767,1752761451808,-153.0,0.00021918,2]
[372788769,1752761451818,-153.0,0.00021918,2]
[372788771,1752761451827,-153.0,0.00021918,2]
[372788772,1752761451837,-153.0,0.00021918,2]
[372788774,1752761451846,-190.701833,0.00021918,2]
[372788776,1752761451856,-190.701833,0.00021918,2]
[372788778,1752761451866,-190.701833,0.00021918,2]
[372788780,1752761451876,-190.701833,0.00021918,2]
[372788782,1752761451885,-190.701833,0.00021918,2]
[372788784,1752761451895,-190.701833,0.00021918,2]
[372788786,1752761451904,-356.341144,0.00021918,2]
[372788788,1752761451914,-356.341144,0.00021918,2]
[372788790,1752761451924,-152.0,0.00021918,2]
[372788792,1752761451933,-152.0,0.00021918,2]
[372788794,1752761451943,-152.0,0.00021918,2]
[372788796,1752761451954,-152.0,0.00021918,2]
[372788798,1752761451963,-152.0,0.00021918,2]
[372788800,1752761451972,-152.0,0.00021918,2]
[372788802,1752761451982,-152.0,0.00021918,2]
[372788804,1752761451991,-152.0,0.00021918,2]
[372788806,1752761452000,-152.0,0.00021918,2]
[372788808,1752761452010,-152.0,0.00021918,2]
[372788810,1752761452022,-152.0,0.00021918,2]
[372788812,1752761452031,-152.0,0.00021918,2]
[372788814,1752761452040,-161.32862197,0.00021918,2]
[372788816,1752761452049,-152.0,0.00021918,2]
[372788818,1752761452060,-152.0,0.00021918,2]
[372788820,1752761452070,-152.0,0.00021918,2]
[372788822,1752761452080,-152.0,0.00021918,2]
[372788824,1752761452089,-152.0,0.00021918,2]
[372788826,1752761452098,-152.0,0.00021918,2]
[372788828,1752761452109,-152.0,0.00021918,2]
[372788830,1752761452118,-152.0,0.00021918,2]
[372788832,1752761452127,-152.0,0.00021918,2]
[372788834,1752761452136,-152.0,0.00021918,2]
[372788836,1752761452145,-152.0,0.00021918,2]
[372788838,1752761452154,-152.0,0.00021918,2]
[372788839,1752761452164,-152.0,0.00021918,2]
[372788841,1752761452173,-152.0,0.00021918,2]
[372788843,1752761452183,-152.0,0.00021918,2]
[372788845,1752761452192,-152.0,0.00021918,2]
[372788847,1752761452202,-152.0,0.00021918,2]
[372788849,1752761452212,-152.0,0.00021918,2]
[372788851,1752761452220,-152.0,0.00021918,2]
[372788853,1752761452230,-152.0,0.00021918,2]
[372788855,1752761452239,-152.0,0.00021918,2]
[372788857,1752761452249,-152.0,0.00021918,2]
[372788859,1752761452258,-152.0,0.00021918,2]
[372788861,1752761452267,-152.0,0.00021918,2]
[372788863,1752761452276,-152.0,0.00021918,2]
[372788865,1752761452285,-152.0,0.00021918,2]
[372788867,1752761452295,-152.0,0.00021918,2]
[372788869,1752761452303,-152.0,0.00021918,2]
[372788871,1752761452313,-152.0,0.00021918,2]
[372788873,1752761452322,-152.0,0.00021918,2]
[372788875,1752761452332,-172.0,0.00021918,2]
[372788877,1752761452341,-172.0,0.00021918,2]
[372788878,1752761452350,-150.0,0.00021918,2]
[372788880,1752761452360,-200.0,0.00021918,2]
[372788883,1752761452370,-172.0,0.00021918,2]
[372788885,1752761452380,-172.0,0.00021918,2]
[372788887,1752761452389,-172.0,0.00021918,2]
[372788889,1752761452398,-173.6841718,0.00021918,2]
[372788891,1752761452407,-152.0,0.00021918,2]
[372788892,1752761452417,-152.0,0.00021918,2]
[372788894,1752761452426,-152.0,0.00021918,2]
[372788896,1752761452436,-152.0,0.00021918,2]
[372788898,1752761452447,-152.0,0.00021918,2]
[372788900,1752761452457,-152.0,0.00021918,2]
[372788902,1752761452465,-152.0,0.00021918,2]
[372788904,1752761452475,-152.0,0.00021918,2]
[372788906,1752761452484,-152.0,0.00021918,2]
[372788908,1752761452493,-152.0,0.00021918,2]
[372788910,1752761452502,-152.0,0.00021918,2]
[372788911,1752761452512,-152.0,0.00021918,2]
[372788913,1752761452521,-152.0,0.00021918,2]
[372788915,1752761452531,-152.0,0.00021918,2]
[372788916,1752761452540,-152.0,0.00021918,2]
[372788917,1752761452549,-152.0,0.00021918,2]
[372788918,1752761452558,-152.0,0.00021918,2]
[372788919,1752761452567,-152.0,0.00021918,2]
[372788920,1752761452576,-152.0,0.00021918,2]
[372788921,1752761452586,-158.38,0.0002192,4]
[372788922,1752761452595,-159.7,0.0002192,4]
[372788923,1752761452606,-500.0,0.00021953,2]
[372788924,1752761452616,-151.0,0.00021969,7]
[372788925,1752761452625,-3155.14115517,0.00022,2]
[372788926,1752761452634,-69757.02,0.00022,2]
[372788927,1752761452644,-10273.0,0.00022,15]
[372788928,1752761452653,-2131.0,0.00022,2]
[372788929,1752761452662,-8194.35,0.00022,7]
[372788930,1752761452789,-4252.81,0.00022,7]
[372788931,1752761452799,-2000.0,0.00022,14]
[372788933,1752761452808,-2000.0,0.00022,14]
[372788935,1752761452818,-2000.0,0.00022,14]
[372788936,1752761452828,-2000.0,0.00022,14]
[372788938,1752761452838,-1392.85,0.00022,14]
[372788940,1752761452848,-1000.0,0.00022,2]
[372788942,1752761452857,-151.0,0.00022,7]
[372788944,1752761452867,-1000.0,0.00022,2]
[372788946,1752761452877,-1000.0,0.00022,2]
[372788948,1752761452886,-1000.0,0.00022,2]
[372788950,1752761452895,-1000.0,0.00022,2]
[372788952,1752761452905,-1000.0,0.00022,2]
[372788954,1752761452914,-151.0,0.00022,7]
[372788956,1752761452924,-152.694879,0.00022,7]
[372788958,1752761452933,-231.319254,0.00022,7]
[372788960,1752761452943,-231.319254,0.00022,7]
[372788962,1752761452953,-190.701833,0.00022,7]
[372788964,1752761452969,-190.701833,0.00022,7]
[372788966,1752761452983,-151.0,0.00022,7]
[372788968,1752761452992,-151.0,0.00022,7]
[372788970,1752761453001,-500.684483,0.00022,7]
[372788972,1752761453012,-151.0,0.00022,7]
[372788974,1752761453022,-236.103923,0.00022,7]
[372788976,1752761453031,-165.485146,0.00022,7]
[372788978,1752761453042,-165.485146,0.00022,7]
[372788980,1752761453052,-327.90044,0.00022,7]
[372788982,1752761453063,-327.90044,0.00022,7]
[372788984,1752761453072,-151.0,0.00022,7]
[372788986,1752761453082,-160.0,0.00022,7]
[372788988,1752761453092,-236.040737,0.00022,7]
[372788991,1752761453102,-236.040737,0.00022,7]
[372788993,1752761453112,-206.866597,0.00022,7]
[372788994,1752761453122,-206.866597,0.00022,7]
[372788997,1752761453131,-151.0,0.00022,7]
[372788998,1752761453142,-564.951053,0.00022,7]
[372789001,1752761453152,-564.951053,0.00022,7]
[372789002,1752761453161,-151.0,0.00022,7]
[372789004,1752761453171,-214.040371,0.00022,7]
[372789006,1752761453181,-214.040371,0.00022,7]
[372789008,1752761453191,-172.959033,0.00022,7]
[372789010,1752761453202,-172.959033,0.00022,7]
[372789012,1752761453211,-342.341719,0.00022,7]
[372789014,1752761453220,-342.341719,0.00022,7]
[372789016,1752761453230,-258.424285,0.00022,7]
[372789018,1752761453239,-151.0,0.00022,7]
[372789020,1752761453248,-258.424285,0.00022,7]
[372789022,1752761453257,-151.0,0.00022,7]
[372789024,1752761453268,-211.715038,0.00022,7]
[372789027,1752761453278,-211.715038,0.00022,7]
[372789028,1752761453287,-151.0,0.00022,7]
[372789030,1752761453296,-151.0,0.00022,7]
[372789032,1752761453305,-268.788372,0.00022,7]
[372789034,1752761453314,-268.788372,0.00022,7]
[372789036,1752761453324,-1103.18001,0.00022,7]
[372789038,1752761453333,-1103.18001,0.00022,7]
[372789040,1752761453342,-271.17291,0.00022,7]
[372789041,1752761453351,-271.17291,0.00022,7]
[372789042,1752761453360,-151.0,0.00022,7]
[372789043,1752761453369,-12607.95677342,0.00022,7]
[372789044,1752761453379,-151.0,0.00022,2]
[372789045,1752761453388,-476.16111942,0.00022,7]
[372789046,1752761453398,-160.0,0.00022,7]
[372789047,1752761453407,-298.0,0.00022,2]
[372789048,1752761453417,-894.48,0.00022007,2]
[372789049,1752761453427,-1888.97,0.00022008,2]
[372789050,1752761453447,-1286.01,0.00022008,2]
[372789051,1752761453459,-1015.2,0.00022008,2]
[372789052,1752761453470,-1011.04,0.00022008,2]
[372789053,1752761453480,-486.38,0.00022008,2]
[372789054,1752761453490,-1192.0,0.0002201,2]
[372789055,1752761453500,-976.0,0.0002201,2]
[372789056,1752761453510,-1520.34,0.0002201,2]
[372789057,1752761453520,-465.74,0.0002201,2]
[372789058,1752761453529,-508.19,0.00022011,2]
[372789059,1752761453540,-919.46,0.00022012,2]
[372789060,1752761453550,-957.6,0.00022012,2]
[372789061,1752761453560,-1594.11,0.00022012,2]
[372789062,1752761453570,-572.38,0.00022012,2]
[372789063,1752761453579,-991.89,0.00022012,2]
[372789064,1752761453589,-4262.81,0.00022012,2]
[372789065,1752761453599,-501.46,0.00022013,2]
[372789066,1752761453609,-500.0,0.00022014,2]
[372789067,1752761453619,-1500.0,0.00022014,2]
[372789068,1752761453629,-1000.0,0.00022021,2]
[372789069,1752761453638,-1000.0,0.00022021,2]
[372789070,1752761453648,-663.56368296,0.00022021,2]
[372789071,1752761453657,-540.13657752,0.00022021,2]
[372789072,1752761453667,-1000.0,0.00022021,2]
[372789073,1752761453677,-500.0,0.00022021,2]
[372789074,1752761453686,-348.63922981,0.00022021,2]
[372789075,1752761453698,-180.7853963,0.00022031,2]
[372789076,1752761453708,-7481.26937425,0.00022038,6]
[372789077,1752761453719,-589.425571,0.00022038,7]
[372789078,1752761453728,-589.425571,0.00022038,7]
[372789079,1752761453738,-151.0,0.00022038,7]
[372789080,1752761453748,-309.1156594,0.0002205,2]
[372789081,1752761453758,-1158.5568069,0.0002205,2]
[372789082,1752761453768,-800.0,0.00022057,2]
[372789083,1752761453778,-151.0,0.00022075,7]
[372789084,1752761453788,-1047.15725946,0.0002208,2]
[372789085,1752761453798,-153.0,0.000221,3]
[372789086,1752761453808,-158.91986126,0.000221,3]
[372789087,1752761453817,-154.0,0.000221,3]
[372789088,1752761453828,-154.0,0.000221,3]
[372789089,1752761453838,-154.0,0.000221,3]
[372789090,1752761453848,-211.33947274,0.000221,3]
[372789091,1752761453857,-324.0,0.000221,3]
[372789092,1752761453867,-183.67082305,0.000221,3]
[372789093,1752761453877,-476.805661,0.00022116,7]
[372789094,1752761453889,-476.805661,0.00022116,7]
[372789095,1752761453899,-1088.0,0.00022127,2]
[372789096,1752761453910,-311.13,0.00022128,2]
[372789097,1752761453920,-331.2,0.00022144,5]
[372789098,1752761453931,-437.649947,0.00022163,2]
[372789099,1752761453941,-298.0,0.00022192,7]
[372789100,1752761453954,-10000.0,0.000222,4]
[372789101,1752761453964,-151.0,0.000222,7]
[372789102,1752761453974,-1281.156343,0.000222,7]
[372789103,1752761453984,-1281.156343,0.000222,7]
[372789104,1752761453995,-151.0,0.000222,7]
[372789105,1752761454005,-151.0,0.000222,7]
[372789106,1752761454018,-567.312125,0.000222,7]
[372789107,1752761454028,-567.312125,0.000222,7]
[372789109,1752761454037,-188.015,0.000222,7]
[372789111,1752761454047,-188.015,0.000222,7]
[372789113,1752761454058,-800.0,0.00022208,2]
[372789115,1752761454067,-500.0,0.00022222,2]
[372789116,1752761454077,-151.0,0.00022222,7]
[372789117,1752761454087,-151.548509,0.00022222,7]
[372789118,1752761454097,-151.200515,0.00022222,7]
[372789119,1752761454107,-151.0,0.00022222,7]
[372789120,1752761454116,-151.0,0.00022222,7]
[372789121,1752761454126,-938.0,0.00022226,2]
[372789122,1752761454135,-760.0,0.00022228,2]
[372789123,1752761454145,-437.649947,0.00022239,3]
[372789124,1752761454155,-800.0,0.00022253,2]
[372789125,1752761454164,-151.0,0.00022265,7]
[372789126,1752761454174,-153.7365877,0.00022272,2]
[372789127,1752761454184,-160.0,0.00022276,3]
[372789128,1752761454194,-894.48,0.00022281,2]
[372789129,1752761454205,-1888.97,0.00022282,2]
[372789130,1752761454214,-1286.01,0.00022282,2]
[372789131,1752761454224,-1015.2,0.00022282,2]
[372789132,1752761454233,-1011.04,0.00022282,2]
[372789133,1752761454243,-486.38,0.00022282,2]
[372789134,1752761454252,-151.0,0.00022283,7]
[372789135,1752761454262,-151.0,0.00022283,7]
[372789136,1752761454271,-191.137164,0.00022283,7]
[372789137,1752761454281,-191.137164,0.00022283,7]
[372789138,1752761454289,-705.28463,0.00022283,7]
[372789139,1752761454299,-705.28463,0.00022283,7]
[372789140,1752761454308,-2200.0,0.00022283,2]
[372789141,1752761454318,-1192.0,0.00022284,2]
[372789142,1752761454328,-976.0,0.00022284,2]
[372789143,1752761454338,-421.972189,0.00022284,7]
[372789144,1752761454347,-421.972189,0.00022284,7]
[372789145,1752761454357,-151.0,0.00022284,7]
[372789146,1752761454367,-155.789669,0.00022284,7]
[372789147,1752761454377,-155.789669,0.00022284,7]
[372789148,1752761454386,-151.0,0.00022284,7]
[372789149,1752761454395,-151.0,0.00022284,7]
[372789150,1752761454405,-151.0,0.00022284,7]
[372789151,1752761454415,-151.0,0.00022284,7]
[372789152,1752761454424,-151.0,0.00022284,7]
[372789153,1752761454433,-151.0,0.00022284,7]
[372789154,1752761454443,-261.17652,0.00022284,7]
[372789155,1752761454455,-151.0,0.00022284,7]
[372789156,1752761454464,-261.17652,0.00022284,7]
[372789157,1752761454474,-1520.34,0.00022284,2]
[372789158,1752761454484,-1000.008564,0.00022284,7]
[372789159,1752761454495,-1000.008564,0.00022284,7]
[372789160,1752761454506,-465.74,0.00022284,2]
[372789161,1752761454515,-508.19,0.00022285,2]
[372789162,1752761454525,-919.46,0.00022286,2]
[372789163,1752761454534,-957.6,0.00022286,2]
[372789164,1752761454544,-1594.11,0.00022286,2]
[372789165,1752761454553,-572.38,0.00022286,2]
[372789166,1752761454563,-991.89,0.00022286,2]
[372789167,1752761454575,-4262.81,0.00022286,2]
[372789168,1752761454584,-605.051561,0.00022287,7]
[372789169,1752761454594,-605.051561,0.00022287,7]
[372789170,1752761454604,-356.341144,0.00022287,7]
[372789171,1752761454614,-356.341144,0.00022287,7]
[372789172,1752761454624,-501.46,0.00022287,2]
[372789173,1752761454634,-10000.0,0.000223,3]
[372789174,1752761454644,-151.0,0.000223,7]
[372789175,1752761454655,-11023.71629678,0.000223,2]
[372789176,1752761454664,-160.0,0.000223,3]
[372789177,1752761454675,-476.16111942,0.000223,3]
[372789178,1752761454685,-7481.26937425,0.00022314,7]
[372789179,1752761454696,-2000.0,0.00022317,2]
[372789180,1752761454711,-2966.84311173,0.00022324,2]
[372789181,1752761454720,-294.71946598,0.0002239,2]
[372789182,1752761454730,-955.60655029,0.0002239,2]
[372789183,1752761454739,-1711.44997232,0.0002239,2]
[372789184,1752761454749,-172.959033,0.00022392,7]